bitfinex/quotes_ETHUSD_20241022
["timestamp","ask_amount","ask_price","bid_price","bid_amount"]
[1729590845358,3.81449,2621.6,2621.1,5.17776164]
[1729590845572,7.62884,2621.7,2621.1,5.17776164]
[1729590845760,7.62884,2621.7,2621.1,1.36266164]
[1729590845761,3.81439,2621.7,2621.1,1.36266164]
[1729590846629,7.62881,2621.7,2621.1,0.55]
[1729590846828,3.81457,2621.6,2621.1,4.36508]
[1729590847764,7.62881,2621.7,2621.1,4.36506]
[1729590847964,7.62881,2621.7,2621.2,0.07629165]
[1729590848158,3.81456,2621.6,2621.2,0.07629165]
[1729590848377,3.81456,2621.6,2621.1,4.36506]
[1729590848584,3.81456,2621.6,2621.1,5.42284601]
[1729590848880,3.81439,2621.7,2621.1,9.23793601]
[1729590849080,7.62883,2621.7,2621.2,0.0762917]
[1729590849436,0.01911186,2622.1,2621.3,0.55]
[1729590849678,3.81354,2622.3,2621.7,4.57028]
[1729590849882,3.81354,2622.3,2621.8,3.89033569]
[1729590850239,0.02531219,2622.4,2621.8,3.89033569]
[1729590850439,3.81321,2622.5,2622.0,0.7561]
[1729590850677,7.62649,2622.5,2622.0,0.8323699]
[1729590850980,3.81331,2622.4,2622.0,0.8323699]
[1729590851180,0.02531219,2622.3,2622.0,0.7561]
[1729590851355,3.81417,2621.8,2621.7,0.7561]
[1729590851551,3.81308,2622.6,2621.4,2.3509901]
[1729590851552,3.81453,2621.6,2621.4,2.3509901]
[1729590851739,0.8291,2621.8,2621.2,0.8157]
[1729590851939,3.81484,2621.4,2621.2,0.8157]
[1729590852280,0.02531219,2621.7,2621.2,0.8157]
[1729590852462,3.81447,2621.6,2621.2,0.8157]
[1729590852637,3.81463,2621.5,2621.2,0.8157]
[1729590853442,3.81447,2621.6,2621.2,0.8157]
[1729590853649,7.65387219,2621.8,2621.2,4.63074]
[1729590854087,3.81437,2621.7,2621.2,4.63074]
[1729590854271,3.8145,2621.6,2621.2,0.8157]
[1729590854516,7.62905,2621.6,2621.2,0.8157]
[1729590854668,3.8145,2621.6,2621.2,0.8157]
[1729590855477,3.8145,2621.6,2621.2,2.4105901]
[1729590856083,3.81434,2621.7,2621.3,1.67118136]
[1729590856383,3.81447,2621.6,2621.3,1.5948901]
[1729590856546,3.81447,2621.6,2621.2,2.4105901]
[1729590857282,3.81426,2621.8,2621.3,0.85758955]
[1729590857486,7.62852,2621.8,2621.3,2.45247965]
[1729590857687,3.81426,2621.8,2621.3,2.45247965]
[1729590857846,3.81426,2621.8,2621.3,6.26731965]
[1729590858394,3.81426,2621.8,2621.3,6.1910301]
[1729590858546,3.81426,2621.8,2621.3,7.78503549]
[1729590861173,3.8139,2622.0,2621.4,4.44096499]
[1729590861377,3.8139,2622.0,2621.6,0.55]
[1729590861673,3.81373,2622.1,2621.7,0.07627831]
[1729590862085,3.81373,2622.1,2621.8,0.7633]
[1729590864317,3.81395,2622.0,2621.8,0.7633]
[1729590866836,3.81402,2621.9,2621.6,0.8173]
[1729590867119,3.81395,2622.0,2621.6,0.8173]
[1729590867120,3.81417,2621.8,2621.6,0.8173]
[1729590868089,3.81395,2622.0,2621.6,0.8173]
[1729590868336,3.81403,2621.9,2621.6,0.8173]
[1729590868712,3.81402,2621.9,2621.6,0.8173]
[1729590869631,3.81374,2622.1,2621.6,0.8173]
[1729590869836,3.81396,2622.0,2621.6,0.8173]
[1729590871535,3.81377,2622.1,2621.6,4.63174]
[1729590871745,3.81377,2622.1,2621.6,0.8173]
[1729590871962,3.81368,2622.2,2621.7,0.07627773]
[1729590872124,3.81368,2622.2,2621.8,0.7875]
[1729590873669,3.81362,2622.2,2621.8,0.7875]
[1729590876360,7.62728,2622.2,2621.8,0.7875]
[1729590876563,3.81362,2622.2,2621.8,0.7875]
[1729590877504,7.62732,2622.2,2621.8,0.7875]
[1729590877817,7.65263219,2622.2,2621.8,0.7875]
[1729590878028,3.81362,2622.2,2621.8,0.7875]
[1729590879305,3.81375,2622.1,2621.8,0.7875]
[1729590879519,3.83906219,2622.1,2621.8,0.7875]
[1729590880306,3.81375,2622.1,2621.8,0.7875]
[1729590881470,4.63112,2622.2,2621.8,0.7875]
[1729590881671,8.44481,2622.2,2621.8,0.7875]
[1729590882107,4.63112,2622.2,2621.8,0.7875]
[1729590882818,8.44481,2622.2,2621.8,0.7875]
[1729590884106,3.81362,2622.2,2621.8,0.7875]
[1729590885838,7.62731,2622.2,2621.8,0.7875]
[1729590886033,3.81362,2622.2,2621.8,0.7875]
[1729590886627,7.6273,2622.2,2621.8,0.7875]
[1729590888029,3.81362,2622.2,2621.8,0.7875]
[1729590890659,0.02531219,2622.3,2621.8,1.61466937]
[1729590890822,0.02531219,2622.3,2621.9,3.81402]
[1729590891023,0.02531219,2622.5,2622.0,0.7705]
[1729590891413,0.02531219,2622.5,2622.0,2.3653901]
[1729590891638,0.02531219,2622.5,2622.1,6.23403947]
[1729590892022,1.3523523,2622.7,2622.2,3.81354]
[1729590892253,1.32704011,2622.7,2622.2,6.30253645]
[1729590892458,5.13990011,2622.7,2622.2,6.30253645]
[1729590892652,1.32704011,2622.7,2622.3,5.11436]
[1729590892859,1.32704011,2622.7,2622.5,0.751]
[1729590893865,5.13991011,2622.7,2622.5,0.751]
[1729590894061,1.32704011,2622.7,2622.5,0.751]
[1729590894873,5.1652923,2622.7,2622.5,0.751]
[1729590895047,3.81319,2622.5,2622.3,0.7536]
[1729590895480,0.02531219,2622.6,2622.1,2.3907901]
[1729590895634,3.81353,2622.3,2622.1,0.7959]
[1729590896041,3.81359,2622.2,2622.1,0.7959]
[1729590896536,3.81353,2622.3,2622.1,0.7959]
[1729590900693,0.02531219,2622.4,2622.1,0.7959]
[1729590901034,1.32704011,2622.7,2622.1,7.07347088]
[1729590901240,3.83843219,2622.6,2622.1,3.18348687]
[1729590901404,3.81316,2622.5,2622.1,3.18348687]
[1729590901727,3.83843219,2622.6,2622.1,3.18348687]
[1729590901926,7.65151219,2622.6,2622.1,3.18348687]
[1729590902429,7.65151219,2622.6,2622.2,0.05463168]
[1729590902633,3.83839219,2622.6,2622.2,0.05463168]
[1729590902800,3.81317,2622.5,2622.2,0.05463168]
[1729590906616,7.62641,2622.5,2622.2,0.05463168]
[1729590906816,3.81317,2622.5,2622.2,0.05463168]
[1729590907946,5.13997011,2622.7,2622.2,0.05463168]
[1729590908103,1.32704011,2622.7,2622.4,3.81327]
[1729590908304,1.32704011,2622.7,2622.3,4.61426]
[1729590908640,1.32704011,2622.7,2622.3,0.8009]
[1729590908840,5.13991011,2622.7,2622.3,2.3957901]
[1729590909145,5.13991011,2622.7,2622.4,0.77066489]
[1729590909742,3.81287,2622.7,2622.4,0.77066489]
[1729590911862,3.81287,2622.7,2622.3,2.3957901]
[1729590912013,3.8133,2622.4,2622.2,1.64952178]
[1729590912213,3.83875219,2622.3,2622.2,0.05463168]
[1729590913977,4.60635219,2622.3,2622.2,0.05463168]
[1729590915714,7.60635219,2622.3,2622.2,0.05463168]
[1729590915918,7.59205219,2622.3,2622.2,0.05463168]
[1729590920801,6.83875219,2622.3,2622.2,0.05463168]
[1729590921605,3.83875219,2622.3,2622.2,0.05463168]
[1729590922061,3.83861219,2622.4,2622.2,0.05463168]
[1729590922270,3.8133,2622.4,2622.2,0.05463168]
[1729590922769,3.8133,2622.4,2622.3,0.808]
[1729590923890,3.83838219,2622.6,2622.3,0.808]
[1729590923891,3.81307,2622.6,2622.3,0.808]
[1729590924047,3.83810219,2622.8,2622.3,0.808]
[1729590924251,3.81279,2622.8,2622.4,0.8009]
[1729590924447,3.81293,2622.7,2622.4,0.8009]
[1729590924673,3.81302,2622.6,2622.4,0.8009]
[1729590925093,7.65093219,2622.8,2622.4,0.8009]
[1729590925653,3.81288,2622.7,2622.4,0.8009]
[1729590925855,3.81288,2622.7,2622.4,1.47482466]
[1729590926061,3.81279,2622.8,2622.4,1.47482466]
[1729590927758,1.37970422,2622.9,2622.4,1.47482466]
[1729590927959,1.37970422,2622.9,2622.6,0.8173]
[1729590927960,1.35439203,2622.9,2622.6,0.8173]
[1729590928208,1.35439203,2622.9,2622.7,0.79878306]
[1729590928209,5.16696203,2622.9,2622.7,0.79878306]
[1729590928357,5.16696203,2622.9,2622.6,0.8173]
[1729590928358,1.35439203,2622.9,2622.6,0.8173]
[1729590928566,1.35439203,2622.9,2622.6,4.70651217]
[1729590929013,1.35439203,2622.9,2622.6,0.89355217]
[1729590929303,1.35439203,2622.9,2622.6,0.8173]
[1729590929497,1.35439203,2622.9,2622.6,4.70652218]
[1729590929711,1.35439203,2622.9,2622.7,0.90695622]
[1729590931187,5.16696203,2622.9,2622.6,0.8173]
[1729590931977,1.35439203,2622.9,2622.6,0.8173]
[1729590937767,3.81286,2622.7,2622.6,0.8173]
[1729590940805,3.81272,2622.8,2622.6,0.8173]
[1729590941297,3.81286,2622.7,2622.6,0.8173]
[1729590941497,3.81272,2622.8,2622.6,0.8173]
[1729590946278,0.02531219,2623.1,2622.4,0.07625419]
[1729590946279,3.81201,2623.3,2622.8,4.58612]
[1729590946520,1.34641409,2623.4,2623.2,2.14446986]
[1729590946823,3.81199,2623.3,2623.2,0.8031]
[1729590947720,3.81199,2623.3,2622.7,0.55]
[1729590947721,3.81213,2623.2,2623.1,1.34136986]
[1729590948324,3.81213,2623.2,2623.0,0.7843]
[1729590949685,3.81228,2623.1,2623.0,0.7843]
[1729590951819,7.6244,2623.2,2623.0,0.7843]
[1729590951983,3.81213,2623.2,2623.0,0.7843]
[1729590952188,3.81228,2623.1,2623.0,0.7843]
[1729590953808,3.81213,2623.2,2623.0,0.7843]
[1729590954009,3.81199,2623.3,2623.0,0.7843]
[1729590954204,3.81199,2623.3,2623.0,1.25120427]
[1729590954407,3.81188,2623.4,2623.0,1.25120427]
[1729590955915,3.812,2623.3,2623.0,1.25120427]
[1729590957716,3.812,2623.3,2623.0,0.7843]
[1729590959677,3.812,2623.3,2622.5,1.5948901]
[1729590959678,0.8167,2623.0,2622.2,0.88133168]
[1729590959814,2.74965367,2623.2,2622.2,0.05463168]
[1729590959815,3.81344,2622.3,2622.2,0.05463168]
[1729590960228,0.02531219,2622.3,2622.2,0.05463168]
[1729590960466,3.81344,2622.3,2622.2,0.05463168]
[1729590960678,0.02531219,2622.5,2622.2,0.05463168]
[1729590960838,3.81279,2622.8,2622.2,3.86821168]
[1729590961171,3.81294,2622.7,2622.3,1.15342117]
[1729590961326,3.81294,2622.7,2622.3,0.7666]
[1729590961961,3.81279,2622.8,2622.3,0.7666]
[1729590962166,3.81303,2622.6,2622.3,0.7666]
[1729590963041,3.81279,2622.8,2622.3,0.7666]
[1729590963232,3.81288,2622.7,2622.3,0.7666]
[1729590963434,3.81288,2622.7,2622.4,0.47110714]
[1729590963664,3.81279,2622.8,2622.4,0.47110714]
[1729590963665,3.81302,2622.6,2622.4,0.47110714]
[1729590963841,3.81302,2622.6,2622.3,0.7666]
[1729590965583,7.62611,2622.6,2622.3,0.7666]
[1729590966570,3.81316,2622.5,2622.3,0.7666]
[1729590968789,3.81302,2622.6,2622.3,0.84286125]
[1729590968964,3.81275,2622.8,2622.3,0.84286125]
[1729590969290,7.62552,2622.8,2622.6,0.8104]
[1729590969466,3.81272,2622.8,2622.6,0.8104]
[1729590970241,3.81251,2623.0,2622.7,1.34152466]
[1729590970580,3.81223,2623.2,2622.9,1.34152466]
[1729590970581,7.62451,2623.2,2622.9,1.34152466]
[1729590970791,3.81229,2623.1,2622.8,1.34152466]
[1729590970972,3.81257,2622.9,2622.7,1.34152466]
[1729590971291,3.81257,2622.9,2622.7,1.97053347]
[1729590972142,3.81257,2622.9,2622.7,3.56542357]
[1729590972559,3.81286,2622.7,2622.5,1.5948901]
[1729590972771,3.81309,2622.6,2622.4,2.4059901]
[1729590973084,3.81309,2622.6,2622.4,2.15262466]
[1729590973281,3.81286,2622.7,2622.5,1.34152466]
[1729590973489,3.81286,2622.7,2622.4,1.39064198]
[1729590973490,3.81286,2622.7,2622.6,1.34152466]
[1729590973840,3.81286,2622.7,2622.5,1.34152466]
[1729590974280,3.81286,2622.7,2622.6,1.34152466]
[1729590974959,3.81286,2622.7,2622.5,1.34152466]
[1729590975119,3.81252,2623.0,2622.6,1.34152466]
[1729590975270,3.81252,2623.0,2622.8,1.34152466]
[1729590975618,3.81222,2623.2,2622.9,0.7612]
[1729590975910,3.81244,2623.0,2622.8,1.34152466]
[1729590976120,3.81257,2622.9,2622.7,1.5948901]
[1729590976265,3.81272,2622.8,2622.6,0.55]
[1729590978509,3.81257,2622.9,2622.6,0.55]
[1729590978723,3.81257,2622.9,2622.6,0.9089049]
[1729590979928,3.81244,2623.0,2622.6,0.9089049]
[1729590980090,3.81244,2623.0,2622.7,0.8291]
[1729590980297,3.81257,2622.9,2622.7,0.8291]
[1729590980605,3.81244,2623.0,2622.7,0.8291]
[1729590980778,3.81244,2623.0,2622.7,0.90535081]
[1729590980980,3.81244,2623.0,2622.7,0.8291]
[1729590982458,3.81228,2623.1,2622.7,0.8291]
[1729590982605,7.62444,2623.2,2622.8,0.55]
[1729590982806,7.62444,2623.2,2622.9,0.519196]
[1729590982807,3.81235,2623.1,2622.9,0.519196]
[1729590983032,3.81235,2623.1,2622.8,0.55]
[1729590983813,3.81244,2623.0,2622.8,0.55]
[1729590984142,7.62496,2623.0,2622.8,0.55]
[1729590984345,3.81271,2622.8,2622.5,2.23454901]
[1729590984502,3.81284,2622.8,2622.5,2.4247901]
[1729590984702,3.81286,2622.7,2622.5,2.4247901]
[1729590985047,3.813,2622.6,2622.5,2.4247901]
[1729590985230,3.813,2622.6,2622.3,0.8299]
[1729590985403,3.813,2622.6,2622.3,1.21835317]
[1729590985605,3.81286,2622.7,2622.3,1.21835317]
[1729590985804,3.81317,2622.5,2622.3,1.21835317]
[1729590987448,0.02531219,2622.9,2622.6,0.7628]
[1729590987449,3.81261,2622.9,2622.6,0.7628]
[1729590987755,3.81213,2623.2,2622.7,0.55]
[1729590987920,3.81213,2623.2,2622.6,0.7628]
[1729590987921,3.81279,2622.8,2622.6,0.7628]
[1729590988838,7.62562,2622.8,2622.4,1.3659]
[1729590989140,3.81279,2622.8,2622.4,2.20068356]
[1729590990162,3.81279,2622.8,2622.5,1.5991151]
[1729590990825,3.813,2622.6,2622.5,1.5991151]
[1729590991151,3.813,2622.6,2622.2,1.65374678]
[1729590991321,3.81332,2622.4,2622.2,0.05463168]
[1729590992214,3.81344,2622.3,2622.2,0.05463168]
[1729590992417,3.81344,2622.3,2622.2,0.1050512]
[1729590995268,4.58474,2622.3,2622.2,0.1050512]
[1729590995490,4.61005219,2622.3,2622.2,0.1050512]
[1729591000225,3.81344,2622.3,2622.2,0.1050512]
[1729591005561,4.62825219,2622.3,2622.2,0.1050512]
[1729591007563,3.83875219,2622.3,2622.2,0.1050512]
[1729591017475,0.02531219,2622.3,2622.2,0.1050512]
[1729591017682,3.81332,2622.4,2622.2,1.44733028]
[1729591017860,3.81332,2622.4,2622.2,0.1050512]
[1729591018283,7.6267,2622.4,2622.2,0.1050512]
[1729591018491,3.81332,2622.4,2622.2,0.1050512]
[1729591018986,3.83849219,2622.5,2622.2,0.1050512]
[1729591019191,3.81318,2622.5,2622.3,0.7609]
[1729591020198,0.02531219,2622.6,2622.3,2.32400211]
[1729591020487,3.81295,2622.7,2622.5,1.34227908]
[1729591020850,3.81295,2622.7,2622.4,1.34227908]
[1729591022778,3.83792219,2622.9,2622.3,1.05798297]
[1729591022779,3.81261,2622.9,2622.5,1.34227908]
[1729591022992,3.81272,2622.8,2622.5,1.34227908]
[1729591023293,7.65058219,2622.9,2622.5,1.34227908]
[1729591023589,3.81261,2622.9,2622.5,1.34227908]
[1729591023773,3.81287,2622.7,2622.5,0.77365372]
[1729591024168,3.81274,2622.8,2622.5,2.1159328]
[1729591024554,3.81273,2622.8,2622.5,2.1159328]
[1729591025197,3.81272,2622.8,2622.5,2.1159328]
[1729591025706,3.81272,2622.8,2622.5,0.77365372]
[1729591025707,3.813,2622.6,2622.5,0.77365372]
[1729591025858,3.8133,2622.4,2622.3,2.3600151]
[1729591026055,3.8133,2622.4,2622.3,0.7609]
[1729591026290,3.8133,2622.4,2622.3,2.10317908]
[1729591026796,3.8133,2622.4,2622.3,0.7609]
[1729591027306,3.81316,2622.5,2622.3,2.48391362]
[1729591029699,3.81316,2622.5,2622.3,1.14163454]
[1729591029904,3.8133,2622.4,2622.3,1.14163454]
[1729591030124,3.8133,2622.4,2622.3,0.7609]
[1729591030457,3.8133,2622.4,2622.2,1.44733028]
[1729591031473,3.8133,2622.4,2622.2,3.04644538]
[1729591033204,3.81316,2622.5,2622.2,3.04644538]
[1729591033501,3.83839219,2622.6,2622.5,0.7822]
[1729591033656,3.81275,2622.8,2622.5,0.7822]
[1729591033657,3.81275,2622.8,2622.5,2.12447908]
[1729591034560,7.62557,2622.8,2622.5,2.12447908]
[1729591034773,7.65088219,2622.8,2622.5,0.7822]
[1729591034994,3.83806219,2622.8,2622.5,1.15455942]
[1729591035790,7.6256,2622.8,2622.5,1.15455942]
[1729591036001,3.813,2622.6,2622.3,3.76589418]
[1729591036401,0.02531219,2622.6,2622.3,2.4236151]
[1729591036600,3.81317,2622.5,2622.3,2.4236151]
[1729591036806,3.81317,2622.5,2622.3,3.76589418]
[1729591037436,3.81297,2622.7,2622.3,3.76589418]
[1729591037605,3.81302,2622.6,2622.3,4.41865819]
[1729591038189,3.81318,2622.5,2622.3,4.41865819]
[1729591038505,3.81318,2622.5,2622.3,1.47726401]
[1729591038977,3.81318,2622.5,2622.3,3.07637911]
[1729591039232,3.81344,2622.3,2622.2,0.1050512]
[1729591041504,3.83861219,2622.4,2622.2,0.1050512]
[1729591041505,7.65202219,2622.4,2622.2,0.1050512]
[1729591041840,0.7829,2622.6,2622.2,0.9050512]
[1729591042137,3.81344,2622.3,2622.2,0.9050512]
[1729591042336,3.81344,2622.3,2622.2,0.1050512]
[1729591042535,3.83875219,2622.3,2622.2,0.1050512]
[1729591044453,3.81344,2622.3,2622.2,0.1050512]
[1729591045560,3.81332,2622.4,2622.2,0.1050512]
[1729591046053,7.62674,2622.4,2622.2,0.1050512]
[1729591046355,3.81344,2622.3,2622.2,0.1050512]
[1729591046538,4.60575219,2622.3,2622.2,0.1050512]
[1729591047605,3.83875219,2622.3,2622.2,0.1050512]
[1729591047842,3.81344,2622.3,2622.2,0.1050512]
[1729591048347,3.81332,2622.4,2622.2,0.1050512]
[1729591048523,3.81332,2622.4,2622.2,0.40969574]
[1729591049052,3.83846219,2622.5,2622.2,0.40969574]
[1729591049343,3.83846219,2622.5,2622.2,1.75197482]
[1729591049344,3.81315,2622.5,2622.2,1.75197482]
[1729591049543,3.8133,2622.4,2622.3,0.788]
[1729591050183,3.81315,2622.5,2622.3,0.788]
[1729591050755,3.8133,2622.4,2622.3,0.788]
[1729591051223,3.8133,2622.4,2622.3,1.20190899]
[1729591051427,3.81315,2622.5,2622.3,1.20190899]
[1729591051639,5.64931331,2622.8,2622.4,1.34227908]
[1729591051928,1.81118112,2622.8,2622.7,1.34227908]
[1729591052162,1.81118112,2622.8,2622.7,4.24309418]
[1729591052428,1.81118112,2622.8,2622.7,5.65784953]
[1729591052787,1.81118112,2622.8,2622.7,4.64455807]
[1729591054233,1.81118112,2622.8,2622.7,2.09397908]
[1729591054442,1.81118112,2622.8,2622.7,2.35094844]
[1729591054794,1.81118112,2622.8,2622.7,0.7517]
[1729591055205,5.62389112,2622.8,2622.7,2.35067417]
[1729591055418,5.62389112,2622.8,2622.7,1.18682532]
[1729591056141,5.62389112,2622.8,2622.7,0.43512532]
[1729591056328,5.62389112,2622.8,2622.6,1.59897417]
[1729591056627,3.813,2622.6,2622.5,2.38727417]
[1729591056830,3.81315,2622.5,2622.4,1.59897417]
[1729591057032,3.81315,2622.5,2622.2,1.70402537]
[1729591057191,3.81344,2622.3,2622.2,0.1050512]
[1729591057386,3.83875219,2622.3,2622.2,0.1050512]
[1729591058732,3.81344,2622.3,2622.2,0.1050512]
[1729591062737,3.81331,2622.4,2622.2,0.8827512]
[1729591063952,3.81344,2622.3,2622.2,0.1050512]
[1729591064246,3.83875219,2622.3,2622.2,0.1050512]
[1729591065422,3.81344,2622.3,2622.2,0.1050512]
[1729591066496,4.63724,2622.3,2622.2,0.1050512]
[1729591066739,4.66255219,2622.3,2622.2,0.1050512]
[1729591067102,3.81344,2622.3,2622.2,0.1050512]
[1729591067298,3.81331,2622.4,2622.2,0.1050512]
[1729591067716,3.81344,2622.3,2622.2,0.1050512]
[1729591071249,3.83862219,2622.4,2622.2,0.1050512]
[1729591071451,3.81344,2622.3,2622.2,0.1050512]
[1729591073354,0.8238,2622.6,2622.2,0.1050512]
[1729591073513,3.81338,2622.4,2622.2,0.1050512]
[1729591074215,3.81315,2622.5,2622.3,0.8073]
[1729591075000,3.81315,2622.5,2622.3,1.05843254]
[1729591075246,3.81294,2622.7,2622.3,1.05843254]
[1729591075451,3.81295,2622.7,2622.3,2.65740671]
[1729591075605,3.81301,2622.6,2622.3,2.65740671]
[1729591075807,3.81301,2622.6,2622.4,2.07513513]
[1729591076320,0.02531219,2622.8,2622.4,1.818006]
[1729591076517,3.81289,2622.7,2622.4,1.818006]
[1729591077451,7.62585,2622.7,2622.4,1.818006]
[1729591077651,3.81289,2622.7,2622.4,1.818006]
[1729591077945,3.81289,2622.7,2622.4,0.47616096]
[1729591079105,3.81302,2622.6,2622.4,0.47616096]
[1729591080052,3.81289,2622.7,2622.3,2.65740671]
[1729591081349,7.62584,2622.7,2622.3,2.65740671]
[1729591081555,3.81289,2622.7,2622.3,2.65740671]
[1729591081755,3.81302,2622.6,2622.3,2.65740671]
[1729591082257,3.81289,2622.7,2622.3,2.65740671]
[1729591082641,3.81289,2622.7,2622.4,0.0490128]
[1729591082854,7.62584,2622.7,2622.4,0.0490128]
[1729591083148,0.02531219,2622.6,2622.4,0.0490128]
[1729591083316,3.81315,2622.5,2622.4,0.0490128]
[1729591083746,3.83846219,2622.5,2622.4,0.0490128]
[1729591087360,3.81315,2622.5,2622.4,0.0490128]
[1729591087736,3.81308,2622.6,2622.4,0.0490128]
[1729591088561,3.81315,2622.5,2622.4,0.0490128]
[1729591088736,3.81308,2622.6,2622.4,0.0490128]
[1729591089830,0.02531219,2622.7,2622.4,0.0490128]
[1729591090139,1.93715753,2622.9,2622.5,2.40237417]
[1729591091235,1.91184534,2622.9,2622.7,0.7851]
[1729591091436,1.91184534,2622.9,2622.8,3.81271]
[1729591091643,1.91184534,2622.9,2622.8,7.06765677]
[1729591092274,1.91184534,2622.9,2622.8,8.36985677]
[1729591092476,1.91184534,2622.9,2622.8,8.36857439]
[1729591093285,1.91184534,2622.9,2622.8,6.37077372]
[1729591093486,1.91184534,2622.9,2622.8,7.96874265]
[1729591093788,1.91184534,2622.9,2622.8,6.37077372]
[1729591094282,1.91184534,2622.9,2622.8,7.9684316]
[1729591094689,1.91184534,2622.9,2622.8,6.37077372]
[1729591094985,1.91184534,2622.9,2622.8,7.96841201]
[1729591096350,0.01908562,2623.4,2622.8,10.61637439]
[1729591096551,3.81171,2623.5,2623.1,1.59700139]
[1729591096751,3.81171,2623.5,2623.0,2.14700139]
[1729591096965,3.81171,2623.5,2623.1,1.59700139]
[1729591097288,3.81171,2623.5,2623.0,5.95941139]
[1729591097599,7.64863219,2623.6,2623.1,1.59700139]
[1729591097794,7.64863219,2623.6,2623.2,0.59593414]
[1729591098089,7.64860219,2623.6,2623.2,0.59593414]
[1729591098292,7.64860219,2623.6,2623.2,1.93695665]
[1729591098451,7.64862219,2623.6,2623.2,1.93695665]
[1729591098663,3.81185,2623.4,2623.2,0.59593414]
[1729591099149,3.81185,2623.4,2623.0,1.34102251]
[1729591099353,7.62377,2623.4,2623.0,1.34102251]
[1729591099553,3.81217,2623.2,2622.9,2.42960139]
[1729591099790,3.81242,2623.0,2622.7,2.39160139]
[1729591099965,3.81242,2623.0,2622.8,1.34102251]
[1729591100270,3.81223,2623.2,2622.7,5.25648408]
[1729591100563,3.81223,2623.2,2623.0,1.34102251]
[1729591100784,3.81223,2623.2,2622.9,1.34102251]
[1729591101096,0.7811,2623.6,2623.1,2.12892251]
[1729591101300,3.81173,2623.5,2623.2,1.34102251]
[1729591101598,3.81173,2623.5,2623.1,2.34181476]
[1729591102191,0.02531219,2623.6,2623.2,1.34102251]
[1729591102400,5.69745532,2623.7,2623.3,1.95642099]
[1729591102603,5.69745532,2623.7,2623.3,1.34102251]
[1729591102976,5.69745532,2623.7,2623.2,5.15313251]
[1729591102977,9.50896532,2623.7,2623.2,5.15313251]
[1729591103262,5.69745532,2623.7,2623.3,1.34102251]
[1729591103468,5.72276751,2623.7,2623.3,1.34102251]
[1729591104260,5.72276751,2623.7,2623.2,3.81211]
[1729591104261,9.53426751,2623.7,2623.2,3.81211]
[1729591104505,9.53426751,2623.7,2623.3,0.48129023]
[1729591104506,5.69745532,2623.7,2623.3,0.48129023]
[1729591105862,1.88596532,2623.7,2623.4,0.8032]
[1729591107875,5.69738532,2623.7,2623.4,0.8032]
[1729591108220,1.88596532,2623.7,2623.4,0.8032]
[1729591108513,1.88596532,2623.7,2623.5,0.50964002]
[1729591109108,3.81113,2623.9,2623.5,0.50964002]
[1729591111816,3.81127,2623.8,2623.5,0.50964002]
[1729591112471,3.81113,2623.9,2623.5,0.50964002]
[1729591113405,4.63428,2624.1,2623.5,0.50964002]
[1729591113406,3.81088,2624.1,2623.6,4.65666647]
[1729591113614,3.81097,2624.0,2623.7,0.78901404]
[1729591113811,3.81088,2624.1,2623.7,0.78901404]
[1729591114012,3.81099,2624.0,2623.7,0.78901404]
[1729591116221,0.02531219,2624.1,2623.7,0.78901404]
[1729591116520,3.81069,2624.2,2623.8,0.9180934]
[1729591117010,3.81094,2624.1,2623.7,0.55]
[1729591117423,3.81106,2624.0,2623.6,0.7689]
[1729591117727,3.81112,2623.9,2623.6,0.7689]
[1729591119131,3.83610219,2624.2,2623.1,0.02]
[1729591119132,3.8117,2623.5,2623.2,0.7608]
[1729591119430,3.8117,2623.5,2623.2,1.29612132]
[1729591119609,4.58119,2623.7,2623.2,5.10825132]
[1729591119813,4.58119,2623.7,2623.3,0.07623335]
[1729591119814,3.81149,2623.7,2623.3,0.07623335]
[1729591120017,3.81121,2623.9,2623.4,4.57263]
[1729591120503,7.62244,2623.9,2623.4,4.57263]
[1729591120902,3.81121,2623.9,2623.4,4.57263]
[1729591121234,3.81127,2623.8,2623.4,0.7608]
[1729591121529,3.81127,2623.8,2623.5,0.57448299]
[1729591122539,3.81121,2623.9,2623.5,0.57448299]
[1729591123342,3.81136,2623.8,2623.4,0.7608]
[1729591124238,3.81121,2623.9,2623.4,0.7608]
[1729591124437,3.81121,2623.9,2623.5,0.07622527]
[1729591124738,3.81107,2624.0,2623.6,0.8127]
[1729591125234,3.81092,2624.1,2623.6,0.8127]
[1729591125492,3.81092,2624.1,2623.7,0.53865692]
[1729591125640,3.81097,2624.0,2623.7,0.462436]
[1729591126414,3.81112,2623.9,2623.7,0.462436]
[1729591126743,3.81097,2624.0,2623.6,0.8127]
[1729591126939,3.81091,2624.1,2623.6,4.62422]
[1729591127344,2.416025,2624.3,2623.6,4.62422]
[1729591127345,1.586025,2624.3,2623.8,2.7238339]
[1729591127638,0.7603,2624.5,2623.8,2.7238339]
[1729591127639,0.7603,2624.5,2624.0,0.8291]
[1729591127800,0.02531219,2624.5,2624.0,3.5529339]
[1729591127996,3.83550219,2624.6,2624.0,3.5529339]
[1729591128242,3.81026,2624.5,2624.0,3.5529339]
[1729591128543,3.81026,2624.5,2624.0,7.3639039]
[1729591128747,3.81026,2624.5,2624.1,1.15851873]
[1729591129040,3.83550219,2624.6,2624.2,0.7551]
[1729591129256,7.62042,2624.6,2624.2,0.7551]
[1729591129455,3.81019,2624.6,2624.2,0.7551]
[1729591129680,3.81032,2624.5,2624.2,0.7551]
[1729591129952,3.81032,2624.5,2624.3,0.19136187]
[1729591130156,3.81033,2624.5,2624.3,0.19136187]
[1729591130355,3.81019,2624.6,2624.3,0.19136187]
[1729591130714,7.62042,2624.6,2624.3,0.19136187]
[1729591131040,0.02531219,2624.5,2624.2,0.7551]
[1729591131220,3.81039,2624.4,2624.2,0.7551]
[1729591132157,3.83566219,2624.5,2624.2,0.7551]
[1729591132364,3.81042,2624.4,2624.2,0.7551]
[1729591132563,3.81053,2624.3,2624.0,0.8314]
[1729591132748,3.81053,2624.3,2624.1,0.42416934]
[1729591133063,3.81053,2624.3,2624.0,0.8314]
[1729591133263,3.81042,2624.4,2624.0,0.8314]
[1729591133437,7.62094,2624.4,2624.0,0.8314]
[1729591133619,3.81042,2624.4,2624.0,0.8314]